[Event "*** Titled Tuesday Blitz"]
[Site "Chess.com"]
[Date "2020.11.10"]
[Round "6"]
[White "nochewycandy"]
[Black "Onischuk_V"]
[Result "0-1"]
[WhiteElo "2535"]
[BlackElo "2857"]
[TimeControl "180+1"]
[EndTime "11:11:10 PST"]
[Termination "Onischuk_V won by checkmate"]

1. e4 {[%clk 0:03:00.9]} 1... e5 {[%clk 0:03:00.1]} 2. Qh5 {[%clk 0:03:00.2]}
2... Nc6 {[%clk 0:02:54.8]} 3. Bc4 {[%clk 0:02:59.4]} 3... g6 {[%clk 0:02:54.5]}
4. Qf3 {[%clk 0:02:59.1]} 4... Nf6 {[%clk 0:02:53]} 5. Ne2 {[%clk 0:02:57.5]}
5... Bg7 {[%clk 0:02:51.6]} 6. Nbc3 {[%clk 0:02:57.6]} 6... O-O {[%clk
0:02:50.6]} 7. d3 {[%clk 0:02:58.3]} 7... h6 {[%clk 0:02:46.9]} 8. g4 {[%clk
0:02:57.2]} 8... Nb4 {[%clk 0:02:29.2]} 9. Bb3 {[%clk 0:02:54.3]} 9... Nh7
{[%clk 0:02:14.2]} 10. a3 {[%clk 0:02:50.6]} 10... Nc6 {[%clk 0:02:13.5]} 11. h4
{[%clk 0:02:49.4]} 11... d6 {[%clk 0:02:13.2]} 12. g5 {[%clk 0:02:38.9]} 12...
h5 {[%clk 0:02:13]} 13. Be3 {[%clk 0:02:32.8]} 13... Nd4 {[%clk 0:02:08.3]} 14.
Bxd4 {[%clk 0:02:29.9]} 14... exd4 {[%clk 0:02:08.5]} 15. Nd5 {[%clk 0:02:30.5]}
15... Bg4 {[%clk 0:01:54.7]} 16. Qg2 {[%clk 0:02:29.6]} 16... Bxe2 {[%clk
0:01:42.2]} 17. Kxe2 {[%clk 0:02:30.5]} 17... Re8 {[%clk 0:01:37.5]} 18. Nf4
{[%clk 0:02:24.8]} 18... Nf8 {[%clk 0:01:37.2]} 19. Rhg1 {[%clk 0:02:19.2]}
19... Qd7 {[%clk 0:01:17.5]} 20. Rae1 {[%clk 0:02:06.4]} 20... Kh8 {[%clk
0:01:06.5]} 21. Kd1 {[%clk 0:02:00.6]} 21... Be5 {[%clk 0:01:05.5]} 22. Qf3
{[%clk 0:01:59.8]} 22... Kg7 {[%clk 0:01:01.1]} 23. Ne2 {[%clk 0:01:49]} 23...
a5 {[%clk 0:01:00.7]} 24. Qg2 {[%clk 0:01:47.6]} 24... a4 {[%clk 0:00:57.6]} 25.
Ba2 {[%clk 0:01:46]} 25... Ne6 {[%clk 0:00:28.1]} 26. Bxe6 {[%clk 0:01:41.2]}
26... Qxe6 {[%clk 0:00:28.2]} 27. f4 {[%clk 0:01:41.6]} 27... Qa2 {[%clk
0:00:28.1]} 28. fxe5 {[%clk 0:01:41.4]} 28... dxe5 {[%clk 0:00:26.9]} 29. Nc1
{[%clk 0:01:15.3]} 29... Qxb2 {[%clk 0:00:26.3]} 30. Rgf1 {[%clk 0:01:10]} 30...
Ra6 {[%clk 0:00:26.2]} 31. Qf2 {[%clk 0:01:07]} 31... Re7 {[%clk 0:00:26.1]} 32.
Qd2 {[%clk 0:00:50.4]} 32... Qxa3 {[%clk 0:00:24.7]} 33. Rf6 {[%clk 0:00:50.8]}
33... Qc5 {[%clk 0:00:17.3]} 34. Rxa6 {[%clk 0:00:47.6]} 34... bxa6 {[%clk
0:00:17]} 35. Rf1 {[%clk 0:00:47.4]} 35... c6 {[%clk 0:00:14.2]} 36. Qf2 {[%clk
0:00:43.4]} 36... Rd7 {[%clk 0:00:14.6]} 37. Qf6+ {[%clk 0:00:43]} 37... Kg8
{[%clk 0:00:14.3]} 38. Kd2 {[%clk 0:00:24.4]} 38... a3 {[%clk 0:00:11.5]} 39.
Ne2 {[%clk 0:00:20.4]} 39... a2 {[%clk 0:00:11.2]} 40. Ra1 {[%clk 0:00:19.7]}
40... Qa5+ {[%clk 0:00:11.4]} 41. Kd1 {[%clk 0:00:18.5]} 41... Rb7 {[%clk
0:00:12]} 42. Nc1 {[%clk 0:00:16.2]} 42... Rb1 {[%clk 0:00:12.2]} 43. Rxa2
{[%clk 0:00:16.6]} 43... Qxa2 {[%clk 0:00:12.3]} 44. Qd8+ {[%clk 0:00:11.6]}
44... Kh7 {[%clk 0:00:12.5]} 45. Qf8 {[%clk 0:00:11.5]} 45... Qe6 {[%clk
0:00:11.1]} 46. Kd2 {[%clk 0:00:11]} 46... a5 {[%clk 0:00:10.4]} 47. Ne2 {[%clk
0:00:11]} 47... Rb7 {[%clk 0:00:09.5]} 48. Ng3 {[%clk 0:00:11]} 48... Qe7 {[%clk
0:00:08.1]} 49. Qc8 {[%clk 0:00:10.7]} 49... Rd7 {[%clk 0:00:07.7]} 50. Qxc6
{[%clk 0:00:09.9]} 50... Rc7 {[%clk 0:00:07.5]} 51. Qb6 {[%clk 0:00:09.2]} 51...
Qc5 {[%clk 0:00:07.3]} 52. Qb3 {[%clk 0:00:07.5]} 52... Qb4+ {[%clk 0:00:06.5]}
53. Qxb4 {[%clk 0:00:07.8]} 53... axb4 {[%clk 0:00:07]} 54. Kc1 {[%clk
0:00:08.1]} 54... b3 {[%clk 0:00:06.1]} 55. Kb2 {[%clk 0:00:08.7]} 55... Rxc2+
{[%clk 0:00:06.2]} 56. Kxb3 {[%clk 0:00:08.7]} 56... Rg2 {[%clk 0:00:06.7]} 57.
Nf1 {[%clk 0:00:08.3]} 57... Rf2 {[%clk 0:00:07.3]} 58. Ng3 {[%clk 0:00:08.2]}
58... Rf3 {[%clk 0:00:07.8]} 59. Ne2 {[%clk 0:00:08.1]} 59... Rxd3+ {[%clk
0:00:08.4]} 60. Kc4 {[%clk 0:00:08.7]} 60... Re3 {[%clk 0:00:08.7]} 61. Nc1
{[%clk 0:00:08.9]} 61... Rxe4 {[%clk 0:00:09.3]} 62. Kd5 {[%clk 0:00:09.8]}
62... Rxh4 {[%clk 0:00:09.7]} 63. Nd3 {[%clk 0:00:10.1]} 63... Kg7 {[%clk
0:00:09.9]} 64. Nxe5 {[%clk 0:00:10.4]} 64... Rg4 {[%clk 0:00:10.2]} 65. Nxg4
{[%clk 0:00:09.2]} 65... hxg4 {[%clk 0:00:10.4]} 66. Kxd4 {[%clk 0:00:10.1]}
66... f5 {[%clk 0:00:09.6]} 67. gxf6+ {[%clk 0:00:11]} 67... Kxf6 {[%clk
0:00:09.9]} 68. Ke4 {[%clk 0:00:11.9]} 68... Kg5 {[%clk 0:00:10.2]} 69. Ke3
{[%clk 0:00:12.7]} 69... Kh4 {[%clk 0:00:10.7]} 70. Kf2 {[%clk 0:00:13.6]} 70...
Kh3 {[%clk 0:00:11.3]} 71. Kg1 {[%clk 0:00:14.3]} 71... Kg3 {[%clk 0:00:11.6]}
72. Kh1 {[%clk 0:00:14.6]} 72... Kf2 {[%clk 0:00:12]} 73. Kh2 {[%clk 0:00:15.1]}
73... g3+ {[%clk 0:00:12.6]} 74. Kh3 {[%clk 0:00:14.8]} 74... g2 {[%clk
0:00:13.2]} 75. Kh4 {[%clk 0:00:15]} 75... g1=Q {[%clk 0:00:12.6]} 76. Kh3
{[%clk 0:00:15.4]} 76... Qg3# {[%clk 0:00:13.1]} 0-1

[Event "*** Titled Tuesday Blitz"]
[Site "Chess.com"]
[Date "2020.11.10"]
[Round "6"]
[White "Infernal_XaM"]
[Black "starworld123"]
[Result "1/2-1/2"]
[WhiteElo "2826"]
[BlackElo "2681"]
[TimeControl "180+1"]
[EndTime "11:11:11 PST"]
[Termination "Game drawn - insufficient material"]

1. d4 {[%clk 0:02:57.1]} 1... Nf6 {[%clk 0:03:00.1]} 2. c4 {[%clk 0:02:58]} 2...
e6 {[%clk 0:03:00.9]} 3. Nc3 {[%clk 0:02:58.1]} 3... Bb4 {[%clk 0:03:01.6]} 4.
e3 {[%clk 0:02:58.6]} 4... O-O {[%clk 0:03:01.9]} 5. Ne2 {[%clk 0:02:59]} 5...
c5 {[%clk 0:03:00.1]} 6. a3 {[%clk 0:02:58.3]} 6... Bxc3+ {[%clk 0:02:59.5]} 7.
Nxc3 {[%clk 0:02:59.2]} 7... cxd4 {[%clk 0:03:00]} 8. Qxd4 {[%clk 0:02:59.5]}
8... Nc6 {[%clk 0:02:59.9]} 9. Qd6 {[%clk 0:02:59.7]} 9... Ne8 {[%clk
0:02:59.5]} 10. Qd2 {[%clk 0:02:59.2]} 10... Nf6 {[%clk 0:02:55.7]} 11. Be2
{[%clk 0:02:57.6]} 11... d5 {[%clk 0:02:56.2]} 12. cxd5 {[%clk 0:02:57.3]} 12...
exd5 {[%clk 0:02:57.1]} 13. O-O {[%clk 0:02:54]} 13... Bf5 {[%clk 0:02:56.2]}
14. Rd1 {[%clk 0:02:52.8]} 14... Re8 {[%clk 0:02:54.6]} 15. b4 {[%clk
0:02:50.8]} 15... Rc8 {[%clk 0:02:55.1]} 16. Bb2 {[%clk 0:02:50.6]} 16... Ne5
{[%clk 0:02:52.3]} 17. Nxd5 {[%clk 0:02:46.5]} 17... Rc2 {[%clk 0:02:51.8]} 18.
Nxf6+ {[%clk 0:02:44.4]} 18... Qxf6 {[%clk 0:02:52.7]} 19. Bxe5 {[%clk
0:02:44.6]} 19... Qxe5 {[%clk 0:02:41.1]} 20. Qe1 {[%clk 0:02:39.4]} 20... Be4
{[%clk 0:02:35.7]} 21. Bf1 {[%clk 0:02:37.9]} 21... h5 {[%clk 0:02:25.3]} 22.
Rac1 {[%clk 0:02:35.6]} 22... Ra2 {[%clk 0:02:23.6]} 23. Rc5 {[%clk 0:02:35.5]}
23... Qf6 {[%clk 0:02:15.4]} 24. Rxh5 {[%clk 0:02:34.6]} 24... Rxa3 {[%clk
0:02:15.6]} 25. Ra5 {[%clk 0:02:33.7]} 25... Rxa5 {[%clk 0:02:09.9]} 26. bxa5
{[%clk 0:02:33.8]} 26... Bc6 {[%clk 0:02:07.1]} 27. Qb4 {[%clk 0:02:33.2]} 27...
Rd8 {[%clk 0:02:04.6]} 28. Rxd8+ {[%clk 0:02:28.5]} 28... Qxd8 {[%clk
0:02:05.5]} 29. Qc3 {[%clk 0:02:09.4]} 29... Qd1 {[%clk 0:02:03.4]} 30. h4
{[%clk 0:02:07.3]} 30... g6 {[%clk 0:01:58]} 31. Qd4 {[%clk 0:02:02.2]} 31...
Qe1 {[%clk 0:01:49.8]} 32. Qxa7 {[%clk 0:01:04.9]} 32... Bb5 {[%clk 0:01:48]}
33. Qb8+ {[%clk 0:01:04.1]} 33... Kh7 {[%clk 0:01:48.6]} 34. Qxb7 {[%clk
0:01:04.4]} 34... Qxf1+ {[%clk 0:01:46.1]} 35. Kh2 {[%clk 0:01:04.7]} 35... Bc4
{[%clk 0:00:59.6]} 36. Kg3 {[%clk 0:01:02.7]} 36... Qa1 {[%clk 0:00:54]} 37. Qc7
{[%clk 0:00:59.9]} 37... Be6 {[%clk 0:00:47.6]} 38. Qc5 {[%clk 0:00:59.4]} 38...
Qa4 {[%clk 0:00:44.9]} 39. f3 {[%clk 0:00:45.3]} 39... Qa1 {[%clk 0:00:45.1]}
40. Qb4 {[%clk 0:00:37.2]} 40... Qa2 {[%clk 0:00:19.9]} 41. e4 {[%clk
0:00:31.9]} 41... Bc4 {[%clk 0:00:20.1]} 42. Qc5 {[%clk 0:00:27.5]} 42... Bf1
{[%clk 0:00:19.3]} 43. Qf2 {[%clk 0:00:27.6]} 43... Qa1 {[%clk 0:00:18.2]} 44.
Qa7 {[%clk 0:00:25.6]} 44... Qa2 {[%clk 0:00:17.4]} 45. Qf2 {[%clk 0:00:24]}
45... Qa1 {[%clk 0:00:16.7]} 46. Kh2 {[%clk 0:00:23.8]} 46... Qe5+ {[%clk
0:00:15.1]} 47. f4 {[%clk 0:00:20.9]} 47... Qb5 {[%clk 0:00:12.6]} 48. Qb6
{[%clk 0:00:17.7]} 48... Qe2 {[%clk 0:00:11.9]} 49. Qg1 {[%clk 0:00:16.1]} 49...
Qb5 {[%clk 0:00:05.8]} 50. Qf2 {[%clk 0:00:14.7]} 50... Bd3 {[%clk 0:00:06]} 51.
Qe3 {[%clk 0:00:13.7]} 51... Bc2 {[%clk 0:00:04.1]} 52. e5 {[%clk 0:00:13.6]}
52... Qxa5 {[%clk 0:00:04]} 53. e6 {[%clk 0:00:13.9]} 53... fxe6 {[%clk
0:00:04.2]} 54. Qxe6 {[%clk 0:00:14.2]} 54... Qa7 {[%clk 0:00:03.9]} 55. Qf6
{[%clk 0:00:12.4]} 55... Bf5 {[%clk 0:00:04.1]} 56. h5 {[%clk 0:00:12.5]} 56...
Qg7 {[%clk 0:00:04.1]} 57. Qg5 {[%clk 0:00:11.8]} 57... Qh6 {[%clk 0:00:03.3]}
58. Qxh6+ {[%clk 0:00:11.6]} 58... Kxh6 {[%clk 0:00:04.2]} 59. hxg6 {[%clk
0:00:12.5]} 59... Kxg6 {[%clk 0:00:04.9]} 60. Kg3 {[%clk 0:00:13.4]} 60... Kh5
{[%clk 0:00:05.8]} 61. Kf2 {[%clk 0:00:14]} 61... Bg4 {[%clk 0:00:06.7]} 62. g3
{[%clk 0:00:14.9]} 62... Kg6 {[%clk 0:00:07.3]} 63. Ke3 {[%clk 0:00:15.8]} 63...
Kf5 {[%clk 0:00:08.1]} 64. Kd4 {[%clk 0:00:16.7]} 64... Bd1 {[%clk 0:00:08.7]}
65. Kc5 {[%clk 0:00:17.6]} 65... Bg4 {[%clk 0:00:09.6]} 66. Kd6 {[%clk
0:00:18.1]} 66... Bf3 {[%clk 0:00:09.9]} 67. g4+ {[%clk 0:00:18.1]} 67... Kxg4
{[%clk 0:00:10.8]} 68. f5 {[%clk 0:00:18.3]} 68... Kxf5 {[%clk 0:00:11.4]}
1/2-1/2

[Event "*** Titled Tuesday Blitz"]
[Site "Chess.com"]
[Date "2020.11.10"]
[Round "6"]
[White "enriquetejedor"]
[Black "PavelShkapenko"]
[Result "0-1"]
[WhiteElo "2489"]
[BlackElo "2664"]
[TimeControl "180+1"]
[EndTime "11:11:12 PST"]
[Termination "PavelShkapenko won on time"]

1. e4 {[%clk 0:02:59.5]} 1... e5 {[%clk 0:02:59.7]} 2. Nf3 {[%clk 0:02:59.5]}
2... Nc6 {[%clk 0:02:59.8]} 3. d4 {[%clk 0:03:00]} 3... exd4 {[%clk 0:02:59.6]}
4. Nxd4 {[%clk 0:03:00.9]} 4... Bc5 {[%clk 0:02:58.7]} 5. Nf5 {[%clk 0:03:00.2]}
5... d5 {[%clk 0:02:57.7]} 6. Qxd5 {[%clk 0:02:01.5]} 6... Qxd5 {[%clk
0:02:49.6]} 7. exd5 {[%clk 0:01:56.4]} 7... Nb4 {[%clk 0:02:43.8]} 8. Bb5+
{[%clk 0:00:52.4]} 8... Kf8 {[%clk 0:02:34]} 9. Ne3 {[%clk 0:00:44.7]} 9... Bxe3
{[%clk 0:02:33.6]} 10. Bxe3 {[%clk 0:00:45.4]} 10... Nxc2+ {[%clk 0:02:33.2]}
11. Kd2 {[%clk 0:00:45.5]} 11... Nxe3 {[%clk 0:02:14.7]} 12. fxe3 {[%clk
0:00:45.7]} 12... Ne7 {[%clk 0:02:14.9]} 13. Nc3 {[%clk 0:00:45.1]} 13... Bg4
{[%clk 0:01:58.7]} 14. h3 {[%clk 0:00:40.8]} 14... Bh5 {[%clk 0:01:57.7]} 15. e4
{[%clk 0:00:38.5]} 15... f6 {[%clk 0:01:50.5]} 16. g4 {[%clk 0:00:36.2]} 16...
Bf7 {[%clk 0:01:50]} 17. Rae1 {[%clk 0:00:36.1]} 17... Ng6 {[%clk 0:01:49.7]}
18. Rhf1 {[%clk 0:00:31.6]} 18... Rd8 {[%clk 0:01:47.6]} 19. Kc2 {[%clk
0:00:28.9]} 19... h6 {[%clk 0:01:31.7]} 20. Bc4 {[%clk 0:00:24.2]} 20... Ne5
{[%clk 0:01:31.5]} 21. Bb3 {[%clk 0:00:18.9]} 21... Ke7 {[%clk 0:01:28.2]} 22.
Ne2 {[%clk 0:00:18.5]} 22... h5 {[%clk 0:01:23.4]} 23. gxh5 {[%clk 0:00:14.9]}
23... Rxh5 {[%clk 0:01:23.3]} 24. Nf4 {[%clk 0:00:13.3]} 24... Rh4 {[%clk
0:01:22.7]} 25. Re3 {[%clk 0:00:08.8]} 25... g5 {[%clk 0:01:17.6]} 26. Ne2
{[%clk 0:00:06.3]} 26... Bg6 {[%clk 0:01:15.3]} 27. Nc3 {[%clk 0:00:05.7]} 27...
Rdh8 {[%clk 0:01:12.1]} 28. d6+ {[%clk 0:00:04.5]} 28... cxd6 {[%clk 0:01:03.3]}
29. Nd5+ {[%clk 0:00:04.7]} 29... Kd8 {[%clk 0:01:03.8]} 30. Rxf6 {[%clk
0:00:01.8]} 30... Bxe4+ {[%clk 0:00:57.4]} 31. Kc1 {[%clk 0:00:02.2]} 31... Nd3+
{[%clk 0:00:37.5]} 32. Kd2 {[%clk 0:00:01.8]} 32... Nc5 {[%clk 0:00:38.1]} 33.
Bc4 {[%clk 0:00:01.6]} 33... Bxd5 {[%clk 0:00:32.8]} 34. Rxd6+ {[%clk
0:00:01.4]} 34... Kc7 {[%clk 0:00:32.8]} 35. Rxd5 {[%clk 0:00:02.3]} 35... Rxc4
{[%clk 0:00:32.6]} 36. Rxg5 {[%clk 0:00:01.7]} 36... Ne4+ {[%clk 0:00:31.8]} 37.
Kd3 {[%clk 0:00:01.9]} 37... Nxg5 {[%clk 0:00:31.1]} 38. Kxc4 {[%clk 0:00:02.4]}
38... Rxh3 {[%clk 0:00:29.1]} 39. Re5 {[%clk 0:00:02.9]} 39... Rh4+ {[%clk
0:00:23.2]} 40. Kb3 {[%clk 0:00:02.6]} 40... Ne4 {[%clk 0:00:21.3]} 41. Re7+
{[%clk 0:00:02.5]} 41... Kc6 {[%clk 0:00:21.4]} 42. Re6+ {[%clk 0:00:02.5]}
42... Nd6 {[%clk 0:00:21.3]} 43. Re3 {[%clk 0:00:03]} 43... a5 {[%clk
0:00:20.9]} 44. a3 {[%clk 0:00:03.2]} 44... a4+ {[%clk 0:00:20.7]} 45. Ka2
{[%clk 0:00:02.6]} 45... Rh2 {[%clk 0:00:19]} 46. Rc3+ {[%clk 0:00:02.2]} 46...
Kd5 {[%clk 0:00:18.9]} 47. Rc7 {[%clk 0:00:01.6]} 47... b5 {[%clk 0:00:18.5]}
48. Rc1 {[%clk 0:00:01.1]} 48... Nc4 {[%clk 0:00:18.1]} 49. Rd1+ {[%clk
0:00:01.6]} 49... Kc5 {[%clk 0:00:17.3]} 50. Rb1 {[%clk 0:00:02.5]} 50... Kd4
{[%clk 0:00:12]} 51. Ka1 {[%clk 0:00:02.4]} 51... Rxb2 {[%clk 0:00:09.2]} 52.
Rxb2 {[%clk 0:00:02.2]} 52... Nxb2 {[%clk 0:00:09.7]} 53. Kxb2 {[%clk
0:00:02.6]} 53... Kd3 {[%clk 0:00:10.2]} 54. Kb1 {[%clk 0:00:02.5]} 54... Kc3
{[%clk 0:00:10.2]} 55. Ka2 {[%clk 0:00:02.7]} 55... Kc2 {[%clk 0:00:10.5]} 0-1

[Event "*** Titled Tuesday Blitz"]
[Site "Chess.com"]
[Date "2020.11.10"]
[Round "6"]
[White "IMprovidence"]
[Black "Margarita2907"]
[Result "1-0"]
[WhiteElo "2386"]
[BlackElo "2225"]
[TimeControl "180+1"]
[EndTime "11:11:12 PST"]
[Termination "IMprovidence won on time"]

1. Nf3 {[%clk 0:03:00.9]} 1... Nf6 {[%clk 0:02:56.3]} 2. g3 {[%clk 0:03:00.3]}
2... c5 {[%clk 0:02:55.5]} 3. Bg2 {[%clk 0:03:00.6]} 3... Nc6 {[%clk 0:02:54.7]}
4. O-O {[%clk 0:03:00.9]} 4... e5 {[%clk 0:02:54.5]} 5. c3 {[%clk 0:02:54.2]}
5... d5 {[%clk 0:02:53.4]} 6. d4 {[%clk 0:02:46.9]} 6... Bd6 {[%clk 0:02:46.9]}
7. dxe5 {[%clk 0:02:40.6]} 7... Nxe5 {[%clk 0:02:46.1]} 8. Nxe5 {[%clk
0:02:40.3]} 8... Bxe5 {[%clk 0:02:46.8]} 9. Be3 {[%clk 0:02:40.9]} 9... d4
{[%clk 0:02:34.3]} 10. cxd4 {[%clk 0:02:40.3]} 10... cxd4 {[%clk 0:02:31.5]} 11.
Bg5 {[%clk 0:02:37.9]} 11... O-O {[%clk 0:02:28.8]} 12. Nd2 {[%clk 0:02:37.5]}
12... h6 {[%clk 0:02:15.2]} 13. Nf3 {[%clk 0:02:33.4]} 13... hxg5 {[%clk
0:02:09.2]} 14. Nxe5 {[%clk 0:02:33.3]} 14... Qd6 {[%clk 0:02:02.2]} 15. Nf3
{[%clk 0:02:31.7]} 15... Rd8 {[%clk 0:01:59.6]} 16. Nxg5 {[%clk 0:02:30.5]}
16... Rb8 {[%clk 0:01:54.9]} 17. Qd3 {[%clk 0:02:24.7]} 17... Be6 {[%clk
0:01:50]} 18. Rfd1 {[%clk 0:02:21.3]} 18... Rd7 {[%clk 0:01:30.6]} 19. Rd2
{[%clk 0:02:13.7]} 19... Rbd8 {[%clk 0:01:29]} 20. Rad1 {[%clk 0:02:09.5]} 20...
Bxa2 {[%clk 0:01:16.6]} 21. b3 {[%clk 0:02:09]} 21... Qa3 {[%clk 0:00:40.3]} 22.
b4 {[%clk 0:02:02.5]} 22... Qxd3 {[%clk 0:00:37.9]} 23. Rxd3 {[%clk 0:02:00.9]}
23... Bc4 {[%clk 0:00:35.6]} 24. R3d2 {[%clk 0:02:00.8]} 24... d3 {[%clk
0:00:31.6]} 25. exd3 {[%clk 0:01:57.7]} 25... Bxd3 {[%clk 0:00:31.3]} 26. Bxb7
{[%clk 0:01:52.4]} 26... Rxb7 {[%clk 0:00:31.2]} 27. Rxd3 {[%clk 0:01:52.2]}
27... Rxd3 {[%clk 0:00:32.1]} 28. Rxd3 {[%clk 0:01:52.4]} 28... g6 {[%clk
0:00:32]} 29. Rd4 {[%clk 0:01:48.3]} 29... Rb5 {[%clk 0:00:27]} 30. h4 {[%clk
0:01:48.1]} 30... Nd5 {[%clk 0:00:25.5]} 31. Kg2 {[%clk 0:01:34.1]} 31... Nxb4
{[%clk 0:00:23.8]} 32. Rd8+ {[%clk 0:01:30.3]} 32... Kg7 {[%clk 0:00:22.2]} 33.
Rd7 {[%clk 0:01:31]} 33... Rf5 {[%clk 0:00:15.5]} 34. Rxa7 {[%clk 0:01:28.4]}
34... Nc6 {[%clk 0:00:15.7]} 35. Rc7 {[%clk 0:01:25.9]} 35... Nd4 {[%clk
0:00:15.4]} 36. Rd7 {[%clk 0:01:23.2]} 36... Nb5 {[%clk 0:00:13.4]} 37. Ne6+
{[%clk 0:01:18.4]} 37... Kg8 {[%clk 0:00:12.8]} 38. Nf4 {[%clk 0:01:10.8]} 38...
Rc5 {[%clk 0:00:09.9]} 39. Nd5 {[%clk 0:01:05.2]} 39... Nc3 {[%clk 0:00:08.8]}
40. Nf6+ {[%clk 0:01:02.1]} 40... Kg7 {[%clk 0:00:08]} 41. Ne8+ {[%clk 0:01:02]}
41... Kf8 {[%clk 0:00:08.2]} 42. Nd6 {[%clk 0:00:58.4]} 42... Rd5 {[%clk
0:00:07.9]} 43. Rxf7+ {[%clk 0:00:58.4]} 43... Kg8 {[%clk 0:00:07.7]} 44. Rc7
{[%clk 0:00:58.1]} 44... Nd1 {[%clk 0:00:03.7]} 45. Ne4 {[%clk 0:00:56.2]} 45...
Rd4 {[%clk 0:00:03.2]} 46. Kf3 {[%clk 0:00:52.9]} 46... Kf8 {[%clk 0:00:03.5]}
47. g4 {[%clk 0:00:50.1]} 47... Rd5 {[%clk 0:00:02.6]} 48. Ke2 {[%clk
0:00:44.9]} 48... Nb2 {[%clk 0:00:03]} 49. f4 {[%clk 0:00:42.4]} 49... Rd4
{[%clk 0:00:02.8]} 50. Ke3 {[%clk 0:00:41.3]} 50... Ra4 {[%clk 0:00:03.3]} 51.
Ng5 {[%clk 0:00:38.7]} 51... Nd1+ {[%clk 0:00:02.4]} 52. Ke2 {[%clk 0:00:37.2]}
52... Nb2 {[%clk 0:00:02.1]} 53. Ne6+ {[%clk 0:00:35.2]} 53... Kg8 {[%clk
0:00:01.8]} 54. Ke3 {[%clk 0:00:34.6]} 54... Nc4+ {[%clk 0:00:01.9]} 55. Kf3
{[%clk 0:00:33.1]} 55... Nd6 {[%clk 0:00:02.8]} 56. Rd7 {[%clk 0:00:29.2]} 56...
Ra3+ {[%clk 0:00:02.8]} 57. Ke2 {[%clk 0:00:28.3]} 57... Ra2+ {[%clk 0:00:03.4]}
58. Ke3 {[%clk 0:00:25.5]} 58... Ra3+ {[%clk 0:00:03.9]} 59. Kd4 {[%clk
0:00:23.5]} 59... Nb5+ {[%clk 0:00:04.4]} 60. Ke5 {[%clk 0:00:23]} 60... Nc3
{[%clk 0:00:03.3]} 61. Kf6 {[%clk 0:00:21.7]} 61... Ne4+ {[%clk 0:00:03.4]} 62.
Kxg6 {[%clk 0:00:21.7]} 62... Ra8 {[%clk 0:00:02.5]} 63. Rg7+ {[%clk 0:00:19.6]}
1-0